bitfinex/quotes_ETHUSD_20260310
["timestamp","ask_amount","ask_price","bid_price","bid_amount"]
[1773182778202,1.74743731,2029.0,2028.6,0.0032]
[1773182779208,0.51530198,2029.0,2028.6,0.0032]
[1773182779505,0.4984,2028.9,2028.6,0.0032]
[1773182779874,0.51530198,2028.9,2028.3,1.23570948]
[1773182780301,0.51530198,2028.9,2028.4,0.0032]
[1773182781400,1.23225552,2028.8,2028.4,0.0032]
[1773182781907,0.4984,2028.8,2028.4,0.0032]
[1773182783314,0.01690198,2028.9,2028.4,0.0032]
[1773182783518,1.74749694,2028.9,2028.4,0.0032]
[1773182784515,0.4984,2029.1,2028.6,0.97067762]
[1773182784703,0.4984,2029.0,2028.5,0.0032]
[1773182785404,0.4984,2028.8,2028.5,0.0032]
[1773182786199,0.4984,2028.8,2028.2,0.0032]
[1773182789028,0.4984,2028.6,2028.4,0.0011]
[1773182792647,0.001,2028.8,2028.5,0.0032]
[1773182792937,0.3737484,2029.2,2028.8,0.0032]
[1773182792938,0.8721484,2029.2,2028.8,0.0032]
[1773182793442,0.3737484,2029.2,2028.8,0.0032]
[1773182793797,0.8721484,2029.2,2028.8,0.0032]
[1773182794700,0.8721484,2029.2,2028.8,1.23545552]
[1773182797611,0.8721484,2029.2,2028.8,0.0032]
[1773182798334,0.3737484,2029.2,2028.9,0.0032]
[1773182798502,3.50519779,2029.6,2028.9,0.0032]
[1773182798707,3.50517572,2029.6,2028.9,0.0032]
[1773182798918,0.4984,2029.5,2028.9,0.0032]
[1773182800148,1.23184363,2029.5,2028.9,1.23539478]
[1773182800307,0.4984,2029.4,2028.9,1.23539478]
[1773182802316,0.4984,2029.4,2029.0,0.0011]
[1773182803408,0.4984,2029.4,2029.1,0.0032]
[1773182803613,3.00681419,2029.6,2029.1,0.0032]
[1773182803614,0.4984,2029.5,2029.1,0.0032]
[1773182805540,4.92672935,2029.8,2029.4,0.97487575]
[1773182805541,0.4984,2029.8,2029.4,0.97487575]
[1773182805728,0.4984,2029.8,2029.2,0.97167575]
[1773182805927,0.4984,2029.8,2029.3,0.0032]
[1773182808862,0.4984,2029.7,2029.3,1.2351519]
[1773182809216,0.4984,2029.7,2029.4,0.0032]
[1773182810949,0.4984,2029.7,2029.3,1.2319519]
[1773182811135,0.4984,2029.7,2029.3,1.2351519]
[1773182812440,0.4984,2029.7,2029.4,0.0032]
[1773182815653,0.4984,2029.7,2029.4,0.0043]
[1773182815950,0.001,2029.5,2029.4,0.0043]
[1773182816450,0.4984,2029.8,2029.5,0.0032]
[1773182821830,0.4984,2029.7,2029.4,0.0011]
[1773182823956,0.4984,2029.5,2029.4,0.0011]
[1773182824630,0.4984,2029.6,2029.4,0.0011]
[1773182829663,0.4984,2029.8,2029.4,0.0043]
[1773182831635,0.38371262,2029.9,2029.5,0.0032]
[1773182831857,0.38371262,2029.9,2029.6,0.0032]
[1773182832755,0.002,2030.0,2029.7,0.0032]
[1773182832956,0.4984,2030.3,2029.9,0.0032]
[1773182833337,0.01,2030.5,2029.5,1.2318305]
[1773182833338,0.5084,2030.5,2030.1,0.0032]
[1773182833541,0.4984,2030.4,2030.0,0.0032]
[1773182833729,0.4984,2030.4,2029.7,0.0032]
[1773182833932,0.4984,2030.4,2029.8,0.0032]
[1773182834133,0.4984,2030.3,2029.8,0.0032]
[1773182836060,0.4984,2030.2,2029.7,1.23170911]
[1773182836759,0.4984,2030.2,2029.7,1.23490911]
[1773182838346,0.4984,2030.2,2029.7,0.0032]
[1773182838677,0.4984,2030.1,2029.7,0.0032]
[1773182839761,1.72979554,2030.3,2029.7,0.0032]
[1773182839954,0.4984,2030.3,2029.7,0.0032]
[1773182840457,0.4984,2030.3,2029.7,1.23170911]
[1773182840661,0.4984,2030.3,2029.8,0.0032]
[1773182841667,0.4984,2030.3,2029.8,0.97487575]
[1773182841975,0.4984,2030.4,2029.9,0.0032]
[1773182842265,0.4984,2030.4,2029.9,0.001]
[1773182842570,0.4984,2030.4,2030.0,0.0032]
[1773182843168,0.002,2030.1,2030.0,0.0032]
[1773182845773,0.4984,2030.4,2030.0,0.0032]
[1773182847378,1.72969911,2030.4,2030.0,0.0032]
[1773182847674,0.4984,2030.3,2030.0,0.0032]
[1773182849974,0.4984,2030.3,2029.7,1.23270143]
[1773182851678,0.4984,2030.3,2029.7,1.23590143]
[1773182851982,1.72980577,2030.2,2029.8,0.0032]
[1773182854982,0.4984,2030.1,2029.8,0.0032]
[1773182856459,0.4984,2030.1,2029.9,0.001]
[1773182856660,0.002,2030.0,2029.9,0.001]
[1773182868287,0.5004,2030.0,2029.7,0.001]
[1773182868596,0.5004,2030.0,2029.5,0.0042]
[1773182868943,0.5004,2030.0,2029.6,0.0042]
[1773182870398,0.002,2030.0,2029.7,0.0042]
[1773182871498,0.002,2030.0,2029.8,0.001]
[1773182871705,0.4999,2030.0,2029.8,0.001]
[1773182873309,0.4979,2029.9,2029.5,1.2327864]
[1773182877011,0.4974,2029.8,2029.5,0.001]
[1773182881213,0.4974,2029.7,2029.4,0.0011]
[1773182881891,0.4974,2029.7,2029.3,0.001]
[1773182884191,0.4969,2029.6,2029.3,0.001]
[1773182884396,0.4969,2029.6,2029.3,0.0072]
[1773182886301,0.4969,2029.6,2029.4,1.23189119]
[1773182887117,0.4969,2029.6,2029.5,0.0011]
[1773182903217,2.3069,2029.7,2029.5,0.0011]
[1773182905142,0.4979,2029.8,2029.5,0.0011]
[1773182905305,1.812,2029.7,2029.5,0.0073]
[1773182907929,0.4979,2029.8,2029.6,0.0062]
[1773182907930,0.001,2029.8,2029.6,0.0062]
[1773182908151,0.001,2029.8,2029.6,0.00010161]
[1773182911438,0.001,2029.8,2029.6,0.00110161]
[1773182912813,0.50094919,2029.8,2029.6,0.001]
[1773182933268,0.50194919,2030.0,2029.6,0.001]
[1773182933564,6.48,2030.2,2029.6,0.001]
[1773182933565,6.97994919,2030.2,2029.8,0.97111831]
[1773182933937,6.48,2030.2,2029.8,0.97111831]
[1773182934839,1.73123962,2030.4,2029.6,0.001]
[1773182934840,0.50994919,2030.5,2030.0,0.97111831]
[1773182935247,0.50994919,2030.5,2029.9,1.23158776]
[1773182935746,0.49994919,2030.4,2029.9,1.23158776]
[1773182940469,0.002,2030.2,2029.9,1.23158776]
[1773182941672,0.50194919,2030.2,2029.8,1.23261167]
[1773182941862,0.50194919,2030.2,2029.8,1.23264218]
[1773182943073,0.50194919,2030.2,2029.7,4.92665313]
[1773182943074,0.50194919,2030.2,2029.6,1.23386215]
[1773182943374,0.50194919,2030.2,2029.9,0.00110161]
[1773182943375,0.002,2030.2,2029.9,0.00110161]
[1773182943773,0.002,2030.2,2029.6,1.23276054]
[1773182943774,0.50144919,2030.2,2029.6,1.23276054]
[1773182944077,0.50144919,2030.2,2029.6,1.23386215]
[1773182944251,0.50144919,2030.2,2029.7,0.00110161]
[1773182947665,0.002,2030.2,2029.7,0.00110161]
[1773182948175,0.002,2030.4,2030.1,0.00110161]
[1773182948347,0.50144919,2030.4,2030.1,0.00110161]
[1773182950776,0.002,2030.4,2030.1,0.00110161]
[1773182952070,0.50144919,2030.4,2029.9,1.23158776]
[1773182952276,0.50144919,2030.4,2029.9,1.23268937]
[1773182954076,0.50144919,2030.4,2029.9,1.23158776]
[1773182954282,0.50144919,2030.4,2030.0,0.00110161]
[1773182954781,0.001,2030.2,2030.0,0.00110161]
[1773182956283,0.36235132,2030.6,2030.1,0.45771699]
[1773182956500,0.36235132,2030.6,2030.0,0.97111831]
[1773182956501,0.49106468,2030.9,2030.5,0.45771699]
[1773182957481,0.49106468,2031.2,2030.5,0.45771699]
[1773182958365,1.7219248,2031.1,2030.7,0.45771699]
[1773182958966,0.49106468,2031.0,2030.7,0.45771699]
[1773182960974,0.49106468,2031.0,2030.7,1.68880651]
[1773182961594,0.47161767,2030.9,2030.5,1.7119877]
[1773182962090,1.23090802,2031.1,2030.6,0.48076432]
[1773182962389,4.92332239,2031.2,2030.7,0.48076432]
[1773182962390,0.47161767,2031.0,2030.7,0.48076432]
[1773182963894,0.47161767,2031.0,2030.7,1.71186288]
[1773182967095,0.47161767,2031.0,2030.8,0.001]
[1773182967663,0.47361767,2031.0,2030.8,0.001]
[1773182968198,0.002,2031.0,2030.8,0.001]
[1773182969413,0.002,2031.0,2030.8,0.48176432]
[1773182972088,0.002,2031.0,2030.9,0.48076432]
[1773182972275,0.38365731,2031.5,2031.0,0.48076432]
[1773182972276,0.85527498,2031.5,2031.0,0.48076432]
[1773182972477,0.85527498,2031.5,2031.1,0.48076432]
[1773182973185,0.38365731,2031.5,2031.3,0.48076432]
[1773182973401,0.47161767,2031.7,2031.3,0.48076432]
[1773182974485,4.00740347,2031.8,2031.3,0.48076432]
[1773182974682,4.47902114,2031.8,2031.3,0.48076432]
[1773182975688,4.47902114,2031.8,2031.4,0.48076432]
[1773182976223,4.47902114,2031.8,2031.0,1.71164318]
[1773182976224,0.47161767,2031.7,2031.0,1.71164318]
[1773182976521,0.47161767,2031.7,2031.1,0.48076432]
[1773182977522,0.96395882,2031.8,2031.2,0.48076432]
[1773182977834,1.23050867,2031.7,2031.3,0.48076432]
[1773182979491,2.66602271,2031.8,2031.5,0.48076432]
[1773182982122,2.66602271,2031.8,2031.5,0.48176432]
[1773182983135,0.002,2031.7,2031.5,0.48176432]
[1773182983636,0.47161767,2032.2,2031.8,0.48076432]
[1773182983833,1.7018614,2032.2,2031.8,0.48076432]
[1773182984822,0.47161767,2032.1,2031.8,0.48076432]
[1773182985404,0.47161767,2032.1,2031.5,1.23157833]
[1773182985607,0.47161767,2031.9,2031.5,0.001]
[1773182986121,0.47161767,2031.9,2031.5,0.48176432]
[1773182986837,0.47161767,2032.0,2031.5,0.48176432]
[1773182989256,1.70171158,2031.9,2031.5,1.71234342]
[1773182989430,1.70171158,2031.9,2031.6,0.46034468]
[1773182990861,0.47133607,2031.9,2031.6,0.46034468]
[1773182991529,1.70171661,2031.9,2031.6,0.46034468]
[1773182993360,0.49792591,2031.8,2031.5,0.001]
[1773182993560,0.49792591,2031.6,2031.3,0.001]
[1773182996164,1.72848382,2031.6,2031.3,0.001]
[1773182996462,1.23055791,2031.6,2031.3,0.001]
[1773182996687,0.49792591,2031.5,2031.3,0.001]
[1773182997043,1.23055791,2031.6,2031.3,0.46134468]
[1773182997248,0.49792591,2031.4,2030.8,0.001]
[1773182997975,0.49792591,2031.2,2030.8,0.001]
[1773182998185,0.49792591,2031.0,2030.8,0.001]
[1773183001070,0.49792591,2030.8,2030.5,1.23221446]
[1773183001448,0.49792591,2030.8,2030.5,1.69255914]
[1773183001777,0.49792591,2030.8,2030.5,1.69256417]
[1773183002588,0.49792591,2030.8,2030.5,0.46134468]
[1773183002787,0.49792591,2030.8,2030.5,0.001]
[1773183002965,1.72898156,2030.8,2030.5,0.001]
[1773183003283,0.49792591,2030.8,2030.5,0.001]
[1773183006293,1.72896947,2030.8,2030.5,0.001]
[1773183007299,0.49792591,2030.8,2030.5,0.001]
[1773183007715,0.49792591,2030.8,2030.5,0.46134468]
[1773183008793,1.72896913,2030.8,2030.5,0.46134468]
[1773183008964,0.49792591,2030.8,2030.5,0.46134468]
[1773183009568,0.49792591,2030.7,2030.5,0.001]
[1773183009765,0.49792591,2030.5,2030.3,0.001]
[1773183011092,1.72913718,2030.6,2030.3,0.001]
[1773183011285,0.49792591,2030.5,2030.3,0.001]
[1773183018693,1.72915054,2030.5,2030.3,0.001]
[1773183019094,0.49792591,2030.4,2030.3,0.001]
[1773183021522,0.47429861,2030.3,2029.8,1.23269933]
[1773183021726,0.47429861,2030.3,2029.8,1.23274839]
[1773183021889,0.47429861,2030.3,2029.8,1.72349425]
[1773183023405,0.47429861,2030.1,2029.8,0.0011]
[1773183026127,1.7058257,2030.0,2029.8,0.0011]
[1773183026307,0.47429861,2030.0,2029.8,0.0011]
[1773183030659,0.47429861,2030.0,2029.6,0.49174586]
[1773183030660,0.47429861,2029.9,2029.6,0.49174586]
[1773183030939,0.47429861,2029.9,2029.6,0.001]
[1773183032245,0.96917077,2029.8,2029.4,0.001]
[1773183032444,0.47429861,2029.7,2029.4,0.001]
[1773183033817,1.70606841,2029.6,2029.4,0.001]
[1773183037537,0.47429861,2029.5,2029.2,0.49184586]
[1773183037733,2.20094057,2029.6,2029.0,0.0011]
[1773183037734,0.47429861,2029.3,2029.0,0.0011]
[1773183039239,1.70629377,2029.3,2029.0,0.0011]
[1773183039866,1.70629377,2029.3,2029.1,0.001]
[1773183040069,0.47429861,2029.3,2029.1,0.001]
[1773183042488,0.002,2029.6,2029.2,0.49074586]
[1773183043583,0.002,2029.6,2029.4,0.49074586]
[1773183045892,0.002,2029.6,2029.5,1.2318305]
[1773183048295,0.002,2029.6,2029.5,0.46625129]
[1773183050490,0.002,2029.6,2029.5,1.69808179]
[1773183052109,0.002,2029.9,2029.6,0.47101505]
[1773183052685,0.002,2029.9,2029.6,1.70275787]
[1773183052887,0.002,2029.9,2029.7,0.47001505]
[1773183054085,0.45663218,2029.8,2029.6,0.001]
[1773183054286,0.45663218,2029.7,2029.1,0.001]
[1773183054523,0.45663218,2029.7,2029.2,0.47001505]
[1773183055022,0.45863218,2029.9,2029.2,0.47001505]
[1773183056512,0.45863218,2029.9,2029.4,0.47001505]
[1773183059814,0.45863218,2029.9,2029.6,0.47001505]
[1773183063941,1.6902423,2029.9,2029.6,0.47001505]
[1773183064142,0.45863218,2029.9,2029.6,0.47001505]
[1773183064339,0.45863218,2029.9,2029.6,1.70177712]
[1773183065147,1.69022041,2029.9,2029.6,0.47101505]
[1773183065345,0.002,2029.7,2029.6,0.47101505]
[1773183065718,0.002,2029.7,2029.6,1.70278485]
[1773183065918,0.002,2029.7,2029.6,0.47101505]
[1773183069060,0.002,2029.7,2029.6,0.001]
[1773183071149,0.002,2029.7,2029.5,1.7017981]
[1773183073227,0.002,2029.7,2029.6,0.47001505]
[1773183073452,1.69006132,2030.2,2029.8,0.47001505]
[1773183073750,0.45663218,2030.1,2029.6,0.47001505]
[1773183073922,0.45663218,2029.8,2029.4,0.001]
[1773183074446,0.45663218,2029.6,2029.4,0.001]
[1773183075455,0.45663218,2029.7,2029.4,0.001]
[1773183075751,0.45663218,2029.7,2029.4,0.47101505]
[1773183075926,0.45663218,2029.8,2029.4,0.47101505]
[1773183076326,1.68828331,2029.8,2029.4,1.70285784]
[1773183077442,1.68828331,2029.8,2029.6,0.001]
[1773183077644,0.002,2029.7,2029.6,0.001]
[1773183077822,0.002,2029.7,2029.6,0.47101505]
[1773183078027,0.002,2029.9,2029.7,0.47001505]
[1773183080056,0.002,2029.9,2029.7,1.70171837]
[1773183081738,0.002,2029.9,2029.8,0.48407829]
[1773183086156,0.002,2030.2,2029.9,0.48407829]
[1773183086754,0.002,2030.2,2029.9,1.71563741]
[1773183087651,0.002,2030.2,2029.9,1.71566409]
[1773183088045,0.49947858,2030.2,2029.9,1.71566409]
[1773183089562,0.002,2030.2,2030.0,0.48407829]
[1773183089861,0.49947858,2030.2,2029.9,1.23257703]
[1773183090057,0.002,2030.0,2029.9,1.23257703]
[1773183090236,0.002,2030.0,2029.9,1.71665532]
[1773183093546,0.002,2030.0,2029.9,0.001]
[1773183096362,0.002,2030.0,2029.9,0.48507829]
[1773183099481,0.002,2030.0,2029.9,1.71666605]
[1773183106596,0.002,2030.3,2030.0,0.48407829]
[1773183106796,0.002,2030.5,2030.3,0.48407829]
[1773183109417,0.002,2030.5,2030.4,1.70522959]
[1773183111801,0.002,2030.6,2030.5,0.47394512]
[1773183114022,0.002,2030.6,2030.5,1.70516895]
[1773183114803,0.002,2030.8,2030.6,0.47394512]
[1773183116619,0.002,2030.8,2030.7,1.23110257]
[1773183116804,0.002,2030.8,2030.7,1.70504769]
[1773183121243,0.002,2030.9,2030.8,0.47394512]
[1773183121442,0.002,2031.1,2030.8,0.47394512]
[1773183122419,0.002,2031.1,2031.0,0.47394512]
[1773183122746,0.35585879,2031.6,2031.1,0.47394512]
[1773183122747,0.82390296,2031.6,2031.1,0.47394512]
[1773183123330,0.82390296,2031.6,2031.3,0.47394512]
[1773183123640,0.002,2031.8,2031.5,0.47394512]
[1773183123839,0.47004417,2031.8,2031.5,0.47394512]
[1773183124664,0.47004417,2031.8,2031.5,1.70450937]
[1773183124893,0.46804417,2031.7,2031.1,1.23083981]
[1773183125030,0.46804417,2031.6,2030.9,0.47394512]
[1773183126766,0.46804417,2031.5,2031.1,0.47394512]
[1773183127059,1.23061198,2031.6,2031.1,0.47394512]
[1773183127245,1.23261198,2031.6,2031.1,0.47394512]
[1773183127863,1.70065615,2031.6,2031.1,0.47394512]
[1773183128234,0.46804417,2031.5,2031.1,0.47394512]
[1773183131462,0.46804417,2031.5,2031.2,1.70474464]
[1773183131874,0.46804417,2031.4,2030.7,0.47394512]
[1773183134651,0.46804417,2031.2,2030.8,1.70498707]
[1773183136682,0.46804417,2031.2,2030.9,0.47394512]
[1773183136873,0.46804417,2031.5,2031.0,0.47394512]
[1773183138970,0.46804417,2031.4,2031.1,1.23086012]
[1773183139490,0.46804417,2031.4,2031.1,1.70019447]
[1773183142619,0.47734305,2031.5,2031.1,1.70019447]
[1773183148899,1.70796223,2031.5,2031.1,1.70019447]
[1773183149400,0.47734305,2031.5,2031.1,1.70019447]
[1773183150906,1.23260649,2031.6,2031.2,1.70012473]
[1773183151110,0.47734305,2031.5,2031.2,1.70012473]
[1773183151309,0.47734305,2031.5,2031.2,1.23079038]
[1773183152912,0.47734305,2031.5,2031.3,0.001]
[1773183153114,0.002,2031.4,2031.3,0.001]
[1773183154015,0.47934305,2031.4,2031.3,0.001]
[1773183167213,0.002,2031.4,2031.3,0.001]
[1773183170269,0.002,2031.4,2031.3,0.48827774]
[1773183176567,0.002,2031.4,2031.3,0.001]
[1773183181716,0.45936669,2031.4,2031.3,0.001]
[1773183183163,0.002,2031.8,2031.4,0.48727774]
[1773183184305,0.45736669,2031.7,2031.3,0.001]
[1773183184605,0.45736669,2031.4,2031.3,0.001]
[1773183184990,3.40853386,2031.4,2031.3,0.001]
[1773183186587,4.6392122,2031.4,2031.3,0.001]
[1773183187110,3.40853386,2031.4,2031.3,0.001]
[1773183187605,4.6392122,2031.4,2031.3,0.001]
[1773183188036,2.95116717,2031.4,2031.1,0.48727774]
[1773183188333,0.45736669,2031.6,2031.1,0.48727774]
[1773183188489,2.36293374,2031.8,2031.4,0.48727774]
[1773183188683,3.91350267,2032.0,2031.7,0.48727774]
[1773183188684,0.37210206,2032.0,2031.7,0.48727774]
[1773183188885,2.7370358,2032.0,2031.7,0.48727774]
[1773183189109,1.22995178,2032.6,2031.7,0.48727774]
[1773183189290,2.26136669,2032.4,2031.7,0.48727774]
[1773183189700,0.45736669,2032.3,2031.7,0.48727774]
[1773183191115,0.45736669,2032.1,2031.7,0.48727774]
[1773183191315,0.45736669,2032.1,2031.6,0.48727774]
[1773183193219,0.45736669,2032.1,2031.7,1.71777436]
[1773183193419,0.002,2031.9,2031.7,1.71777436]
[1773183195863,0.45936669,2031.9,2031.5,0.48727774]
[1773183197520,0.45936669,2031.9,2031.4,1.71790774]
[1773183199440,1.71518372,2031.9,2031.5,0.48587207]
[1773183199655,1.23243378,2031.9,2031.5,0.48587207]
[1773183199861,0.48274994,2031.7,2031.3,1.23173757]
[1773183200043,0.48274994,2031.7,2031.3,1.71760964]
[1773183200250,0.002,2031.9,2031.4,0.48587207]
[1773183200556,0.48274994,2031.8,2031.3,0.48687207]
[1773183200858,0.48274994,2031.8,2031.3,0.001]
[1773183201228,0.48274994,2031.7,2031.3,0.001]
[1773183201455,0.48274994,2031.4,2031.0,0.48687207]
[1773183202946,0.48274994,2031.4,2031.0,0.001]
[1773183203425,0.48274994,2031.1,2030.8,0.001]
[1773183203829,1.71352209,2031.3,2030.8,0.48687207]
[1773183204045,0.48274994,2031.2,2030.8,0.48687207]
[1773183205537,1.23086012,2031.1,2031.0,0.001]
[1773183205752,1.71355537,2031.2,2031.0,0.001]
[1773183206145,0.48274994,2031.4,2031.0,0.48687207]
[1773183206346,0.48274994,2031.5,2031.0,0.48687207]
[1773183206659,0.002,2031.8,2031.0,0.48687207]
[1773183206660,3.50225244,2031.7,2031.2,0.48587207]
[1773183206959,0.48274994,2031.6,2031.2,0.48587207]
[1773183207865,0.48274994,2031.6,2031.3,1.23073893]
[1773183208172,3.50722518,2031.8,2031.4,0.48587207]
[1773183208682,0.48274994,2031.7,2031.4,0.48587207]
[1773183209860,1.71325176,2031.7,2031.4,0.48587207]
[1773183213549,1.71325114,2031.7,2031.4,0.48587207]
[1773183214478,0.48274994,2031.6,2031.3,1.23073754]
[1773183215606,0.48274994,2031.6,2031.2,1.23079952]
[1773183215810,0.48274994,2031.6,2031.3,0.48587207]
[1773183217714,0.48274994,2031.6,2031.3,1.71658107]
[1773183218309,0.48274994,2031.6,2031.4,0.001]
[1773183219201,0.48474994,2031.6,2031.4,0.001]
[1773183220704,0.065536,2030.8,2029.7,0.001]
[1773183220927,0.48274994,2029.9,2029.7,0.001]
[1773183221075,0.48274994,2029.8,2029.2,1.71787556]
[1773183221282,0.48274994,2029.8,2029.3,0.48587207]
[1773183221482,2.93808497,2029.7,2029.3,1.71782066]
[1773183221683,0.48274994,2029.8,2029.3,0.48587207]
[1773183221911,2.93808497,2029.7,2029.4,5.59611065]
[1773183222210,3.42083491,2029.6,2029.1,0.001]
[1773183222413,0.48274994,2029.6,2029.1,0.001]
[1773183222602,2.93319054,2029.5,2029.1,0.001]
[1773183223104,0.48274994,2029.6,2029.1,0.001]
[1773183223300,3.41172692,2029.6,2029.1,0.001]
[1773183223503,1.71455464,2029.6,2029.1,0.001]
[1773183223901,0.48274994,2029.4,2029.1,0.001]
[1773183225822,0.48274994,2029.4,2027.0,7.98903884]
[1773183225823,0.48274994,2029.3,2027.0,7.98903884]
[1773183226035,0.48274994,2028.1,2027.1,4.02556651]
[1773183226326,4.923996,2028.6,2026.8,0.48587207]
[1773183226327,0.48274994,2027.8,2027.2,0.0011]
[1773183226494,0.48274994,2027.8,2027.1,0.0011]
[1773183226909,0.48274994,2027.7,2027.1,0.0011]
[1773183227423,0.48274994,2027.7,2027.2,0.0011]
[1773183227722,0.46532932,2027.5,2026.8,1.71933368]
[1773183228332,0.46532932,2027.5,2026.8,1.71932366]
[1773183229300,0.46532932,2027.5,2026.8,1.71933173]
[1773183229512,0.46532932,2027.5,2026.8,0.48587207]
[1773183229729,1.72307393,2027.4,2026.8,1.71933904]
[1773183229931,1.72307393,2027.4,2026.9,0.0011]
[1773183229932,0.48996749,2027.3,2026.9,0.0011]
[1773183230108,0.48996749,2027.3,2026.7,4.93412301]
[1773183230634,0.48996749,2027.3,2026.8,1.23346697]
[1773183231140,0.48996749,2027.3,2026.7,1.23348624]
[1773183231815,0.48996749,2027.2,2026.6,1.70352506]
[1773183232219,1.72310569,2027.4,2026.7,0.4699639]
[1773183232417,1.72283069,2027.8,2026.7,0.4699639]
[1773183232630,1.14404331,2027.7,2026.7,0.4699639]
[1773183232826,1.6340108,2027.7,2026.7,0.4699639]
[1773183233112,1.14404331,2027.6,2026.7,0.4699639]
[1773183233334,1.14404331,2027.6,2026.9,0.4699639]
[1773183233559,1.14404331,2027.6,2027.0,0.4710639]
[1773183233758,0.001,2027.2,2027.0,0.4710639]
[1773183233958,0.001,2027.2,2027.1,1.23328893]
[1773183234746,1.14404331,2027.5,2027.1,1.70325283]
[1773183234953,1.14404331,2027.5,2027.2,0.4699639]
[1773183236070,1.14404331,2027.5,2027.2,1.70313269]
[1773183240763,0.84914259,2027.5,2027.3,0.4699639]
[1773183241278,1.72277794,2027.9,2027.3,1.9929639]
[1773183241578,0.48996749,2027.8,2027.3,1.9929639]
[1773183243096,0.48996749,2027.7,2027.3,3.22608711]
[1773183246864,0.48996749,2027.7,2027.5,0.0011]
[1773183249966,0.48996749,2027.7,2027.3,3.22718711]
[1773183249967,0.48996749,2027.6,2027.3,0.0011]
[1773183250169,1.23292914,2027.7,2027.0,0.0011]
[1773183250170,0.48996749,2027.4,2027.0,0.0011]
[1773183250360,0.48996749,2027.2,2026.8,0.0011]
[1773183250554,0.48996749,2027.0,2026.8,0.0011]
[1773183250780,3.4044191,2026.9,2026.8,0.0011]
[1773183251952,4.63782972,2026.9,2026.8,0.0011]
[1773183252157,4.63782972,2026.9,2026.6,1.511]
[1773183252453,2.91445161,2026.8,2026.6,1.511]
[1773183252658,2.32502036,2027.0,2026.7,0.3074499]
[1773183252853,9.82967562,2027.4,2026.7,0.3074499]
[1773183252854,2.32502036,2027.4,2026.7,0.3074499]
[1773183253074,2.81498785,2027.5,2026.7,0.3074499]
[1773183253277,2.32502036,2027.4,2026.7,0.3074499]
[1773183253854,2.81498785,2027.5,2026.7,0.3074499]
[1773183254078,2.32502036,2027.3,2026.8,1.23347148]
[1773183254269,2.32502036,2027.3,2026.9,0.3074499]
[1773183254475,2.32502036,2027.4,2026.9,0.3074499]
[1773183255068,3.52570196,2027.3,2026.8,1.23347148]
[1773183255269,4.40712746,2027.5,2026.8,1.23347148]
[1773183255270,4.40712746,2027.5,2026.9,0.3074499]
[1773183255884,6.13012145,2027.6,2026.9,0.3074499]
[1773183256690,6.13010135,2027.6,2027.0,1.54079967]
[1773183258792,6.13010135,2027.6,2027.1,0.0011]
[1773183258967,6.13010135,2027.6,2027.0,1.54079967]
[1773183258968,0.001,2027.5,2027.0,1.54079967]
[1773183260391,0.001,2027.5,2027.1,0.3074499]
[1773183260774,0.001,2027.5,2027.2,1.54067799]
[1773183260970,0.001,2027.5,2027.3,0.3074499]
[1773183261793,0.001,2027.5,2027.2,1.23322809]
[1773183262169,0.001,2027.5,2027.2,1.54067799]
[1773183262370,0.001,2027.5,2027.3,0.3074499]
[1773183262776,0.45326381,2027.9,2027.5,1.53949552]
[1773183263190,4.40712746,2028.0,2027.5,1.53949552]
[1773183263488,6.09308431,2028.1,2027.6,0.3064499]
[1773183263690,0.45326381,2028.0,2027.6,0.3064499]
[1773183263896,0.45326381,2028.0,2027.5,1.23304562]
[1773183264094,0.45326381,2028.0,2027.5,1.53949552]
[1773183266395,0.45326381,2028.0,2027.6,0.3064499]
[1773183267995,0.45326381,2027.9,2027.3,0.3064499]
[1773183270197,0.45326381,2027.8,2027.4,1.23310644]
[1773183271578,0.45426381,2027.8,2027.4,1.23310644]
[1773183271785,0.45426381,2027.8,2027.4,1.53955634]
[1773183279018,0.45326381,2027.7,2027.4,1.23310564]
[1773183279315,0.45326381,2027.7,2027.3,1.53961716]
[1773183281319,0.45326381,2027.7,2027.4,0.3064499]
[1773183284221,0.45326381,2027.7,2027.6,0.0011]
[1773183284821,1.68618781,2027.7,2027.6,0.0011]
[1773183285425,0.45326381,2027.7,2027.6,0.0011]
[1773183285621,1.68618781,2027.7,2027.6,0.0011]
[1773183286297,0.45326381,2027.7,2027.6,0.0011]
[1773183289117,1.68618781,2027.7,2027.6,0.0011]
[1773183289320,0.45326381,2027.7,2027.6,0.0011]
[1773183290121,0.001,2027.8,2027.6,0.3075499]
[1773183290318,0.49039328,2027.8,2027.6,0.0011]
[1773183294417,0.48939328,2027.7,2027.6,0.0011]
[1773183294733,0.48939328,2027.7,2027.4,0.0011]
[1773183295123,0.48939328,2027.6,2027.4,0.0011]
[1773183297531,0.49039328,2027.6,2027.4,0.0011]
[1773183297711,0.49039328,2027.6,2027.5,0.0011]
[1773183300747,0.49039328,2027.6,2027.2,0.0011]
[1773183300907,0.48939328,2027.5,2026.8,0.3086499]
[1773183301535,0.49039328,2027.6,2027.0,0.3086499]
[1773183302130,0.49039328,2027.6,2027.2,0.3086499]
[1773183304137,0.49039328,2027.6,2027.3,1.23316726]
[1773183305541,0.49039328,2027.6,2027.3,1.54181716]
[1773183306049,0.48939328,2027.5,2027.0,1.23334808]
[1773183306219,0.48939328,2027.4,2027.0,1.23334808]
[1773183307133,0.48939328,2027.4,2026.9,2.76240272]
[1773183307334,0.48939328,2027.4,2026.9,2.76236356]
[1773183308444,0.48939328,2027.2,2026.9,1.23336356]
[1773183309143,0.48939328,2027.2,2026.7,0.3097499]
[1773183309144,0.48939328,2027.2,2026.7,1.54324792]
[1773183309528,0.48939328,2027.2,2027.1,0.0011]
[1773183312123,1.72262137,2027.2,2027.1,0.0011]
[1773183313049,0.48939328,2027.2,2027.1,0.0011]
[1773183313229,1.72262137,2027.2,2027.1,0.0011]
[1773183313437,0.48939328,2027.1,2026.7,1.23459802]
[1773183314833,0.48939328,2027.0,2026.7,1.23459802]
[1773183316351,0.48939328,2027.0,2026.7,0.0011]
[1773183317133,0.48939328,2026.9,2026.7,0.0011]
[1773183325564,0.47893257,2027.4,2026.8,0.97363982]
[1773183325860,0.47893257,2027.4,2026.7,0.0011]
[1773183325861,0.001,2027.4,2027.1,0.3097499]
[1773183328246,0.001,2027.4,2027.2,1.23322809]